[Event "*** Titled Tuesday Blitz"]
[Site "Chess.com"]
[Date "2021.03.16"]
[Round "1"]
[White "InitiatingASC"]
[Black "Rud_Makarian"]
[Result "1-0"]
[WhiteElo "2444"]
[BlackElo "2789"]
[TimeControl "180+1"]
[EndTime "10:07:44 PDT"]
[Termination "InitiatingASC won by resignation"]

1. d4 {[%clk 0:03:00.5]} 1... Nf6 {[%clk 0:02:57.4]} 2. c4 {[%clk 0:02:59.4]}
2... b6 {[%clk 0:02:54.5]} 3. Nc3 {[%clk 0:02:58.6]} 3... Bb7 {[%clk 0:02:53]}
4. e3 {[%clk 0:02:55.2]} 4... e6 {[%clk 0:02:51.5]} 5. Nf3 {[%clk 0:02:55.6]}
5... Bb4 {[%clk 0:02:50.9]} 6. Bd3 {[%clk 0:02:55.5]} 6... Bxc3+ {[%clk
0:02:51]} 7. bxc3 {[%clk 0:02:55.3]} 7... d6 {[%clk 0:02:51.2]} 8. O-O {[%clk
0:02:54.8]} 8... O-O {[%clk 0:02:50.4]} 9. Nd2 {[%clk 0:02:51.8]} 9... e5 {[%clk
0:02:48.9]} 10. e4 {[%clk 0:02:50.7]} 10... c5 {[%clk 0:02:47.1]} 11. f3 {[%clk
0:02:43.8]} 11... Nc6 {[%clk 0:02:46.9]} 12. d5 {[%clk 0:02:38.9]} 12... Ne7
{[%clk 0:02:44.2]} 13. a4 {[%clk 0:02:32.1]} 13... a5 {[%clk 0:02:39.2]} 14. Rf2
{[%clk 0:02:28.5]} 14... Bc8 {[%clk 0:02:38.2]} 15. Nf1 {[%clk 0:02:27.8]} 15...
Ng6 {[%clk 0:02:36.9]} 16. Ng3 {[%clk 0:02:20.8]} 16... h6 {[%clk 0:02:37]} 17.
Nf5 {[%clk 0:02:18.3]} 17... Bxf5 {[%clk 0:02:33.7]} 18. exf5 {[%clk 0:02:18.2]}
18... Nf4 {[%clk 0:02:33.9]} 19. Bf1 {[%clk 0:02:09.2]} 19... Qd7 {[%clk
0:02:27.9]} 20. Qc2 {[%clk 0:02:06.7]} 20... Rfe8 {[%clk 0:02:08.1]} 21. Rb1
{[%clk 0:02:06.5]} 21... Rab8 {[%clk 0:02:07.7]} 22. g3 {[%clk 0:01:55.5]} 22...
N4h5 {[%clk 0:02:07.1]} 23. Bg2 {[%clk 0:01:55.7]} 23... e4 {[%clk 0:02:04.2]}
24. fxe4 {[%clk 0:01:38.5]} 24... Re7 {[%clk 0:02:04.2]} 25. Bf3 {[%clk
0:01:25.9]} 25... Rbe8 {[%clk 0:02:01.9]} 26. g4 {[%clk 0:01:11.4]} 26... Nxe4
{[%clk 0:02:01.5]} 27. Bxe4 {[%clk 0:01:09.3]} 27... Rxe4 {[%clk 0:02:02.4]} 28.
gxh5 {[%clk 0:01:09.8]} 28... Rxc4 {[%clk 0:01:30.3]} 29. Bd2 {[%clk 0:00:52.1]}
29... Qb7 {[%clk 0:01:15.1]} 30. Qd3 {[%clk 0:00:48.2]} 30... Rxa4 {[%clk
0:01:15.5]} 31. Rg2 {[%clk 0:00:44.5]} 31... Re5 {[%clk 0:01:08.2]} 32. Bxh6
{[%clk 0:00:40.3]} 32... Qxd5 {[%clk 0:01:07.6]} 33. Rxg7+ {[%clk 0:00:40.1]}
33... Kf8 {[%clk 0:00:57.8]} 34. Qxd5 {[%clk 0:00:31.5]} 34... Rxd5 {[%clk
0:00:58.7]} 35. Rg4+ {[%clk 0:00:23.8]} 35... Ke7 {[%clk 0:00:55.2]} 36. Rxa4
{[%clk 0:00:23.8]} 36... Rxf5 {[%clk 0:00:55.6]} 37. Rxb6 {[%clk 0:00:23]} 37...
Rxh5 {[%clk 0:00:56]} 38. Bf4 {[%clk 0:00:23.1]} 38... Rf5 {[%clk 0:00:49.8]}
39. Bxd6+ {[%clk 0:00:22.6]} 39... Kd7 {[%clk 0:00:50.3]} 40. Bg3 {[%clk
0:00:22.5]} 40... c4 {[%clk 0:00:49.1]} 41. Rxc4 {[%clk 0:00:22.4]} 41... a4
{[%clk 0:00:49.6]} 42. Rxa4 {[%clk 0:00:22.3]} 42... Ke7 {[%clk 0:00:45.1]} 43.
Ra7+ {[%clk 0:00:20.3]} 43... Kf8 {[%clk 0:00:45.8]} 44. Rb8+ {[%clk 0:00:20.4]}
44... Kg7 {[%clk 0:00:46.4]} 45. Rbb7 {[%clk 0:00:21.2]} 45... Kg6 {[%clk
0:00:45.8]} 46. c4 {[%clk 0:00:21.8]} 46... Rf3 {[%clk 0:00:43.6]} 47. Kg2
{[%clk 0:00:21.4]} 47... Rc3 {[%clk 0:00:43.8]} 48. Rd7 {[%clk 0:00:22.3]} 48...
Rxc4 {[%clk 0:00:40.8]} 49. Rxf7 {[%clk 0:00:22.6]} 49... Rb4 {[%clk 0:00:37.4]}
50. Rg7+ {[%clk 0:00:22.8]} 50... Kh5 {[%clk 0:00:34.8]} 51. Ra5+ {[%clk
0:00:22.3]} 51... Kh6 {[%clk 0:00:35]} 52. Rgg5 {[%clk 0:00:22.1]} 52... Kh7
{[%clk 0:00:31.8]} 53. Kh3 {[%clk 0:00:19.8]} 53... Kh6 {[%clk 0:00:32]} 54.
Rgc5 {[%clk 0:00:19]} 54... Rb6 {[%clk 0:00:27.7]} 55. Rab5 {[%clk 0:00:18.9]}
55... Ra6 {[%clk 0:00:20.5]} 56. Rd5 {[%clk 0:00:19.1]} 56... Kg7 {[%clk
0:00:20.1]} 57. Rb7+ {[%clk 0:00:18.6]} 1-0

[Event "*** Titled Tuesday Blitz"]
[Site "Chess.com"]
[Date "2021.03.16"]
[Round "1"]
[White "Oleksandr_Bortnyk"]
[Black "Orest_Vovk"]
[Result "1-0"]
[WhiteElo "2938"]
[BlackElo "2477"]
[TimeControl "180+1"]
[EndTime "10:07:45 PDT"]
[Termination "Oleksandr_Bortnyk won by resignation"]

1. e4 {[%clk 0:02:57]} 1... g5 {[%clk 0:02:58.2]} 2. d4 {[%clk 0:02:51]} 2... h6
{[%clk 0:02:55.1]} 3. Nc3 {[%clk 0:02:47.2]} 3... Bg7 {[%clk 0:02:53]} 4. Be3
{[%clk 0:02:38.1]} 4... d6 {[%clk 0:02:52.9]} 5. Bc4 {[%clk 0:02:30.4]} 5... c6
{[%clk 0:02:52]} 6. Bb3 {[%clk 0:02:19.4]} 6... Qa5 {[%clk 0:02:41.2]} 7. Ne2
{[%clk 0:02:13.2]} 7... Nd7 {[%clk 0:02:39.2]} 8. Qd2 {[%clk 0:02:08.6]} 8...
Nf8 {[%clk 0:02:36.6]} 9. O-O-O {[%clk 0:02:06.2]} 9... Be6 {[%clk 0:02:30.1]}
10. Kb1 {[%clk 0:02:04]} 10... Bxb3 {[%clk 0:02:28.6]} 11. axb3 {[%clk
0:01:59.3]} 11... O-O-O {[%clk 0:02:24.6]} 12. f4 {[%clk 0:01:54.9]} 12... gxf4
{[%clk 0:01:50.9]} 13. Nxf4 {[%clk 0:01:55.8]} 13... Nf6 {[%clk 0:01:45.2]} 14.
Qe2 {[%clk 0:01:42]} 14... Ng6 {[%clk 0:01:36.9]} 15. Nxg6 {[%clk 0:01:12.9]}
15... fxg6 {[%clk 0:01:37.8]} 16. Rhf1 {[%clk 0:01:13.4]} 16... Rhf8 {[%clk
0:01:15.4]} 17. h3 {[%clk 0:01:02.7]} 17... Qh5 {[%clk 0:00:59]} 18. Qc4 {[%clk
0:00:51.7]} 18... d5 {[%clk 0:00:54.5]} 19. Qc5 {[%clk 0:00:51.8]} 19... dxe4
{[%clk 0:00:42.5]} 20. Qxe7 {[%clk 0:00:19]} 20... Rd7 {[%clk 0:00:33.8]} 21.
Qe6 {[%clk 0:00:18.7]} 21... Re8 {[%clk 0:00:30.2]} 22. Qc4 {[%clk 0:00:18.7]}
22... Nd5 {[%clk 0:00:25.1]} 23. Nxd5 {[%clk 0:00:16.8]} 23... Qxd5 {[%clk
0:00:24.5]} 24. Qa4 {[%clk 0:00:16.4]} 24... a6 {[%clk 0:00:20.8]} 25. c4 {[%clk
0:00:17.1]} 25... Qe6 {[%clk 0:00:18.4]} 26. d5 {[%clk 0:00:16.4]} 26... Qd6
{[%clk 0:00:11.7]} 27. dxc6 {[%clk 0:00:14.2]} 27... Qxc6 {[%clk 0:00:11.2]} 28.
Qb4 {[%clk 0:00:08.5]} 28... Rxd1+ {[%clk 0:00:10.4]} 29. Rxd1 {[%clk
0:00:09.4]} 29... Rd8 {[%clk 0:00:10.5]} 30. Rf1 {[%clk 0:00:09.2]} 30... Be5
{[%clk 0:00:08.6]} 31. Rf7 {[%clk 0:00:08.4]} 31... Bd6 {[%clk 0:00:08]} 32. Qa5
{[%clk 0:00:07.5]} 32... Bc7 {[%clk 0:00:07.5]} 33. Qb4 {[%clk 0:00:06.8]} 33...
Rd1+ {[%clk 0:00:07.3]} 34. Ka2 {[%clk 0:00:06.3]} 34... Rd7 {[%clk 0:00:07.9]}
35. Rxd7 {[%clk 0:00:03.8]} 35... Qxd7 {[%clk 0:00:07.5]} 36. Qf8+ {[%clk
0:00:04.6]} 36... Qd8 {[%clk 0:00:06.5]} 37. Qxh6 {[%clk 0:00:05.5]} 37... Bd6
{[%clk 0:00:06.5]} 38. Qxg6 {[%clk 0:00:04.6]} 38... Qa5+ {[%clk 0:00:06.6]} 39.
Kb1 {[%clk 0:00:05.4]} 39... Qe1+ {[%clk 0:00:06.7]} 40. Bc1 {[%clk 0:00:05.9]}
40... Bb4 {[%clk 0:00:05.7]} 41. Qe8+ {[%clk 0:00:04.8]} 41... Kc7 {[%clk
0:00:05.8]} 42. Qe5+ {[%clk 0:00:05]} 42... Kc8 {[%clk 0:00:05.2]} 43. Qf4
{[%clk 0:00:04.3]} 43... Bc5 {[%clk 0:00:03.5]} 44. Qf5+ {[%clk 0:00:04.7]}
44... Kb8 {[%clk 0:00:03.1]} 45. Qxc5 {[%clk 0:00:05.6]} 45... e3 {[%clk
0:00:03.7]} 46. Qxe3 {[%clk 0:00:05.9]} 46... Qf1 {[%clk 0:00:03.4]} 47. Qf4+
{[%clk 0:00:05.8]} 1-0

[Event "*** Titled Tuesday Blitz"]
[Site "Chess.com"]
[Date "2021.03.16"]
[Round "1"]
[White "Supernotar"]
[Black "KyrgyzFighter"]
[Result "1/2-1/2"]
[WhiteElo "2709"]
[BlackElo "2390"]
[TimeControl "180+1"]
[EndTime "10:07:50 PDT"]
[Termination "Game drawn by agreement"]

1. d4 {[%clk 0:03:00.9]} 1... f5 {[%clk 0:02:57.8]} 2. c4 {[%clk 0:03:00.6]}
2... Nf6 {[%clk 0:02:57.8]} 3. Nf3 {[%clk 0:03:00]} 3... g6 {[%clk 0:02:57.9]}
4. g3 {[%clk 0:02:59.7]} 4... Bg7 {[%clk 0:02:58.1]} 5. Bg2 {[%clk 0:02:59.5]}
5... O-O {[%clk 0:02:58.7]} 6. O-O {[%clk 0:02:59.4]} 6... d6 {[%clk 0:02:59.1]}
7. b3 {[%clk 0:02:59.1]} 7... e5 {[%clk 0:02:59.2]} 8. Bb2 {[%clk 0:02:53.2]}
8... e4 {[%clk 0:02:57.2]} 9. Nfd2 {[%clk 0:02:52.7]} 9... c6 {[%clk 0:02:54.2]}
10. e3 {[%clk 0:02:45.8]} 10... d5 {[%clk 0:02:53.7]} 11. Nc3 {[%clk 0:02:45.3]}
11... Be6 {[%clk 0:02:45]} 12. f4 {[%clk 0:02:40.7]} 12... exf3 {[%clk
0:02:39.4]} 13. Qxf3 {[%clk 0:02:38.5]} 13... Ne4 {[%clk 0:02:29.7]} 14. Ndxe4
{[%clk 0:02:31.4]} 14... fxe4 {[%clk 0:02:26.5]} 15. Qe2 {[%clk 0:02:29.8]}
15... Nd7 {[%clk 0:02:19.4]} 16. Rxf8+ {[%clk 0:02:28.8]} 16... Qxf8 {[%clk
0:02:18]} 17. Rf1 {[%clk 0:02:25.9]} 17... Qe7 {[%clk 0:02:15.9]} 18. cxd5
{[%clk 0:02:21]} 18... cxd5 {[%clk 0:02:11.8]} 19. Nb5 {[%clk 0:02:20.9]} 19...
Nf6 {[%clk 0:01:59.6]} 20. Ba3 {[%clk 0:02:18.7]} 20... Qd7 {[%clk 0:01:56.8]}
21. Rc1 {[%clk 0:02:12.1]} 21... a6 {[%clk 0:01:44.3]} 22. Nc7 {[%clk
0:02:02.3]} 22... Bg4 {[%clk 0:01:37.3]} 23. Qf2 {[%clk 0:01:16.5]} 23... Rc8
{[%clk 0:01:29.9]} 24. Qf4 {[%clk 0:01:16]} 24... h5 {[%clk 0:00:49.1]} 25. Qe5
{[%clk 0:00:45.2]} 25... Kh7 {[%clk 0:00:40.1]} 26. h4 {[%clk 0:00:34.3]} 26...
Bf3 {[%clk 0:00:31.6]} 27. Ne6 {[%clk 0:00:27.6]} 27... Re8 {[%clk 0:00:23.8]}
28. Ng5+ {[%clk 0:00:24.7]} 28... Kg8 {[%clk 0:00:21]} 29. Qc7 {[%clk
0:00:23.9]} 29... Bxg2 {[%clk 0:00:19.8]} 30. Qxd7 {[%clk 0:00:21.8]} 30... Nxd7
{[%clk 0:00:20.7]} 31. Kxg2 {[%clk 0:00:22.2]} 31... Nf6 {[%clk 0:00:20.2]} 32.
Rc7 {[%clk 0:00:20.7]} 32... Ng4 {[%clk 0:00:19.4]} 33. Bc1 {[%clk 0:00:17.6]}
33... Bf6 {[%clk 0:00:17.3]} 34. Nh3 {[%clk 0:00:16]} 34... Be7 {[%clk
0:00:08.5]} 35. Nf4 {[%clk 0:00:12.3]} 35... Bd6 {[%clk 0:00:08.9]} 36. Rc2
{[%clk 0:00:06]} 36... Bxf4 {[%clk 0:00:08.1]} 37. gxf4 {[%clk 0:00:06.9]} 37...
Re7 {[%clk 0:00:08.4]} 38. Bd2 {[%clk 0:00:06.9]} 38... Kf7 {[%clk 0:00:08.1]}
39. Kf1 {[%clk 0:00:06.8]} 39... Ke6 {[%clk 0:00:07.9]} 40. Ke2 {[%clk
0:00:07.1]} 40... Rd7 {[%clk 0:00:08.4]} 41. Bb4 {[%clk 0:00:06.4]} 41... Nh6
{[%clk 0:00:08.7]} 42. Be1 {[%clk 0:00:05.6]} 42... Nf5 {[%clk 0:00:09.2]} 43.
a4 {[%clk 0:00:05.8]} 43... Kd6 {[%clk 0:00:09.5]} 44. b4 {[%clk 0:00:04.6]}
44... Ke6 {[%clk 0:00:10.1]} 45. Bf2 {[%clk 0:00:03.7]} 45... Kd6 {[%clk
0:00:09.7]} 46. Be1 {[%clk 0:00:04]} 46... Rc7 {[%clk 0:00:10]} 47. Rxc7 {[%clk
0:00:03.8]} 47... Kxc7 {[%clk 0:00:10.9]} 48. Kd2 {[%clk 0:00:03.8]} 48... b5
{[%clk 0:00:10.3]} 1/2-1/2

[Event "*** Titled Tuesday Blitz"]
[Site "Chess.com"]
[Date "2021.03.16"]
[Round "1"]
[White "gurelediz"]
[Black "VinzentSpitzl"]
[Result "1/2-1/2"]
[WhiteElo "2662"]
[BlackElo "2361"]
[TimeControl "180+1"]
[EndTime "10:07:51 PDT"]
[Termination "Game drawn by repetition"]

1. e4 {[%clk 0:03:00.9]} 1... c5 {[%clk 0:02:59.3]} 2. Nf3 {[%clk 0:03:00.6]}
2... Nc6 {[%clk 0:02:59.2]} 3. d4 {[%clk 0:03:01.2]} 3... cxd4 {[%clk
0:02:59.4]} 4. Nxd4 {[%clk 0:03:02.1]} 4... Nf6 {[%clk 0:02:59.8]} 5. Nc3 {[%clk
0:03:01.8]} 5... e5 {[%clk 0:02:58]} 6. Ndb5 {[%clk 0:03:01.6]} 6... d6 {[%clk
0:02:57.8]} 7. Bg5 {[%clk 0:03:01.7]} 7... a6 {[%clk 0:02:55.5]} 8. Na3 {[%clk
0:03:02.3]} 8... b5 {[%clk 0:02:53.5]} 9. Nd5 {[%clk 0:03:02.9]} 9... Be7 {[%clk
0:02:51.8]} 10. Bxf6 {[%clk 0:03:03.5]} 10... Bxf6 {[%clk 0:02:51.7]} 11. c4
{[%clk 0:03:04.2]} 11... b4 {[%clk 0:02:51.1]} 12. Nc2 {[%clk 0:03:03.7]} 12...
Rb8 {[%clk 0:02:46.9]} 13. b3 {[%clk 0:03:02.9]} 13... O-O {[%clk 0:02:43.9]}
14. g3 {[%clk 0:03:03.4]} 14... Bg5 {[%clk 0:02:43.7]} 15. h4 {[%clk 0:03:03.4]}
15... Bh6 {[%clk 0:02:43.9]} 16. Bh3 {[%clk 0:03:01.4]} 16... Be6 {[%clk
0:02:41.8]} 17. Kf1 {[%clk 0:03:01.1]} 17... Qd7 {[%clk 0:02:32.3]} 18. Kg2
{[%clk 0:02:59.2]} 18... a5 {[%clk 0:02:27.3]} 19. Qh5 {[%clk 0:02:46.7]} 19...
f5 {[%clk 0:02:16.1]} 20. exf5 {[%clk 0:02:37.6]} 20... Bxf5 {[%clk 0:02:16.4]}
21. Bxf5 {[%clk 0:02:35.7]} 21... Rxf5 {[%clk 0:02:16.3]} 22. Qe2 {[%clk
0:02:35.4]} 22... Rbf8 {[%clk 0:02:04.8]} 23. Rhf1 {[%clk 0:02:35.5]} 23... Qb7
{[%clk 0:01:52.2]} 24. Qe4 {[%clk 0:02:20.3]} 24... g6 {[%clk 0:01:42.6]} 25.
Rad1 {[%clk 0:02:14.7]} 25... a4 {[%clk 0:01:36.9]} 26. Ndxb4 {[%clk 0:01:49.4]}
26... Qb6 {[%clk 0:01:12.7]} 27. Nd3 {[%clk 0:01:06.5]} 27... axb3 {[%clk
0:01:01.2]} 28. Rb1 {[%clk 0:01:01.9]} 28... Ne7 {[%clk 0:00:30.4]} 29. axb3
{[%clk 0:00:59.2]} 29... g5 {[%clk 0:00:25.6]} 30. hxg5 {[%clk 0:00:56.5]} 30...
Bxg5 {[%clk 0:00:25.5]} 31. b4 {[%clk 0:00:53.9]} 31... Qc7 {[%clk 0:00:21.4]}
32. b5 {[%clk 0:00:50.4]} 32... d5 {[%clk 0:00:20]} 33. Qe2 {[%clk 0:00:41]}
33... Qxc4 {[%clk 0:00:16.9]} 34. Rb4 {[%clk 0:00:37.1]} 34... Qc7 {[%clk
0:00:13.1]} 35. Rg4 {[%clk 0:00:34]} 35... Kh8 {[%clk 0:00:12.3]} 36. Rh1 {[%clk
0:00:33.3]} 36... e4 {[%clk 0:00:11.2]} 37. Ndb4 {[%clk 0:00:17.3]} 37... Rxf2+
{[%clk 0:00:09.2]} 38. Qxf2 {[%clk 0:00:18.2]} 38... Rxf2+ {[%clk 0:00:08.3]}
39. Kxf2 {[%clk 0:00:19.1]} 39... Qc5+ {[%clk 0:00:07.2]} 40. Kg2 {[%clk
0:00:19.7]} 40... Bf6 {[%clk 0:00:06.5]} 41. Rh6 {[%clk 0:00:18.3]} 41... Bg7
{[%clk 0:00:05.5]} 42. Ra6 {[%clk 0:00:17.3]} 42... Qxb5 {[%clk 0:00:05]} 43.
Ra8+ {[%clk 0:00:17.6]} 43... Ng8 {[%clk 0:00:05.5]} 44. Ra7 {[%clk 0:00:16.8]}
44... Qe2+ {[%clk 0:00:05.3]} 45. Kh3 {[%clk 0:00:16.5]} 45... Qf1+ {[%clk
0:00:05.7]} 46. Kh2 {[%clk 0:00:16.6]} 46... Qe2+ {[%clk 0:00:06.1]} 47. Kh3
{[%clk 0:00:17.3]} 47... Bf6 {[%clk 0:00:05]} 48. Ra8 {[%clk 0:00:15.9]} 48...
Qf1+ {[%clk 0:00:04.7]} 49. Kh2 {[%clk 0:00:16.5]} 49... Qe2+ {[%clk 0:00:04]}
50. Kh3 {[%clk 0:00:16.2]} 50... Qf1+ {[%clk 0:00:04.3]} 51. Kh2 {[%clk
0:00:16.8]} 51... Qe2+ {[%clk 0:00:04.4]} 52. Kh3 {[%clk 0:00:17.3]} 1/2-1/2

[Event "*** Titled Tuesday Blitz"]
[Site "Chess.com"]
[Date "2021.03.16"]
[Round "1"]
[White "Dyadya81"]
[Black "TwentyHourADay"]
[Result "1-0"]
[WhiteElo "2739"]
[BlackElo "2398"]
[TimeControl "180+1"]
[EndTime "10:07:54 PDT"]
[Termination "Dyadya81 won on time"]

1. e4 {[%clk 0:02:58.7]} 1... c6 {[%clk 0:02:56.5]} 2. d4 {[%clk 0:02:57.7]}
2... d5 {[%clk 0:02:56.7]} 3. e5 {[%clk 0:02:57.5]} 3... Bf5 {[%clk 0:02:56.5]}
4. h4 {[%clk 0:02:56.8]} 4... a6 {[%clk 0:02:54.4]} 5. g4 {[%clk 0:02:55]} 5...
Bd7 {[%clk 0:02:54.6]} 6. f4 {[%clk 0:02:51.7]} 6... e6 {[%clk 0:02:54]} 7. h5
{[%clk 0:02:50.8]} 7... c5 {[%clk 0:02:52]} 8. c3 {[%clk 0:02:39.7]} 8... Bb5
{[%clk 0:02:43.7]} 9. Bg2 {[%clk 0:02:06]} 9... Nh6 {[%clk 0:02:37.7]} 10. Be3
{[%clk 0:02:01.3]} 10... Nd7 {[%clk 0:02:36.8]} 11. Nd2 {[%clk 0:01:55.2]} 11...
Rc8 {[%clk 0:02:29.6]} 12. a4 {[%clk 0:01:44.4]} 12... Bd3 {[%clk 0:02:25.2]}
13. Nb3 {[%clk 0:01:40.8]} 13... c4 {[%clk 0:02:18.2]} 14. Nc1 {[%clk
0:01:40.9]} 14... Be4 {[%clk 0:02:12.2]} 15. Bxe4 {[%clk 0:01:28.4]} 15... dxe4
{[%clk 0:02:12.4]} 16. Nh3 {[%clk 0:01:24.4]} 16... Nb6 {[%clk 0:01:47.1]} 17.
Nf2 {[%clk 0:01:09.7]} 17... Nd5 {[%clk 0:01:43.5]} 18. Kd2 {[%clk 0:01:02.1]}
18... f5 {[%clk 0:01:25.2]} 19. exf6 {[%clk 0:00:59.3]} 19... gxf6 {[%clk
0:01:25.2]} 20. Nxe4 {[%clk 0:00:37.2]} 20... f5 {[%clk 0:01:24.4]} 21. gxf5
{[%clk 0:00:25.7]} 21... Nxf5 {[%clk 0:01:16.4]} 22. Rh3 {[%clk 0:00:21.1]}
22... Bh6 {[%clk 0:01:07.7]} 23. Ne2 {[%clk 0:00:19.4]} 23... Rg8 {[%clk
0:00:41.6]} 24. Qf1 {[%clk 0:00:15.9]} 24... Nfxe3 {[%clk 0:00:33.7]} 25. Rxe3
{[%clk 0:00:15.5]} 25... Nxe3 {[%clk 0:00:33.9]} 26. Kxe3 {[%clk 0:00:16.4]}
26... Kd7 {[%clk 0:00:28.7]} 27. a5 {[%clk 0:00:14.2]} 27... Qh4 {[%clk
0:00:25.8]} 28. Qf3 {[%clk 0:00:14.1]} 28... Rc7 {[%clk 0:00:19.2]} 29. Nc5+
{[%clk 0:00:13.1]} 29... Kc8 {[%clk 0:00:19.4]} 30. Nxe6 {[%clk 0:00:13.1]}
30... Re7 {[%clk 0:00:18.9]} 31. d5 {[%clk 0:00:13.6]} 31... Rd8 {[%clk
0:00:15.7]} 32. Ra4 {[%clk 0:00:10.9]} 32... Qf6 {[%clk 0:00:14.4]} 33. Rxc4+
{[%clk 0:00:11]} 33... Kb8 {[%clk 0:00:15]} 34. Rd4 {[%clk 0:00:09.8]} 34...
Qe5+ {[%clk 0:00:12.9]} 35. Qe4 {[%clk 0:00:08]} 35... Qxh5 {[%clk 0:00:12.4]}
36. Kd3 {[%clk 0:00:05.4]} 36... Qh3+ {[%clk 0:00:11.6]} 37. Qe3 {[%clk
0:00:04.7]} 37... Qf5+ {[%clk 0:00:11.2]} 38. Qe4 {[%clk 0:00:03.7]} 38... Qh3+
{[%clk 0:00:11.4]} 39. Kc2 {[%clk 0:00:04.1]} 39... Qh2 {[%clk 0:00:09.1]} 40.
f5 {[%clk 0:00:04.1]} 40... Qd6 {[%clk 0:00:05.7]} 41. f6 {[%clk 0:00:04.2]}
41... Rf7 {[%clk 0:00:06.3]} 42. Qf5 {[%clk 0:00:04]} 42... Be3 {[%clk
0:00:04.1]} 43. Nxd8 {[%clk 0:00:03.6]} 43... Bxd4 {[%clk 0:00:04]} 44. Nxf7
{[%clk 0:00:03.1]} 44... Qc7 {[%clk 0:00:04.4]} 45. Nxd4 {[%clk 0:00:02.8]}
45... Qxf7 {[%clk 0:00:04.6]} 46. Qe6 {[%clk 0:00:03.4]} 46... Qg6+ {[%clk
0:00:05.1]} 47. Qf5 {[%clk 0:00:03.8]} 47... Qg2+ {[%clk 0:00:05.4]} 48. Kb3
{[%clk 0:00:04.3]} 1-0

[Event "*** Titled Tuesday Blitz"]
[Site "Chess.com"]
[Date "2021.03.16"]
[Round "1"]
[White "eightbyeightchess"]
[Black "vinniethepooh"]
[Result "0-1"]
[WhiteElo "2375"]
[BlackElo "2717"]
[TimeControl "180+1"]
[EndTime "10:07:54 PDT"]
[Termination "vinniethepooh won by checkmate"]

1. e4 {[%clk 0:03:00.9]} 1... c5 {[%clk 0:02:56.9]} 2. Nf3 {[%clk 0:03:00.8]}
2... d6 {[%clk 0:02:57.2]} 3. d4 {[%clk 0:03:01]} 3... cxd4 {[%clk 0:02:58.1]}
4. Qxd4 {[%clk 0:03:01.6]} 4... Nc6 {[%clk 0:02:57.5]} 5. Bb5 {[%clk 0:03:01.5]}
5... Bd7 {[%clk 0:02:57.6]} 6. Bxc6 {[%clk 0:03:01.7]} 6... Bxc6 {[%clk
0:02:58.5]} 7. Nc3 {[%clk 0:03:02]} 7... Nf6 {[%clk 0:02:58.8]} 8. Bg5 {[%clk
0:03:01.9]} 8... e6 {[%clk 0:02:59]} 9. O-O-O {[%clk 0:03:01.6]} 9... Be7 {[%clk
0:02:59.2]} 10. Qd3 {[%clk 0:03:00.8]} 10... Qa5 {[%clk 0:02:58.5]} 11. h4
{[%clk 0:02:59.8]} 11... h6 {[%clk 0:02:48.8]} 12. Bd2 {[%clk 0:02:59.2]} 12...
Qa6 {[%clk 0:02:46.2]} 13. Nd4 {[%clk 0:02:57.5]} 13... Rc8 {[%clk 0:02:42.6]}
14. f3 {[%clk 0:02:47]} 14... O-O {[%clk 0:02:37.1]} 15. Qxa6 {[%clk 0:02:39.6]}
15... bxa6 {[%clk 0:02:38]} 16. g4 {[%clk 0:02:40.3]} 16... Nh7 {[%clk
0:01:57.9]} 17. Rdg1 {[%clk 0:02:04.1]} 17... Bf6 {[%clk 0:01:09.2]} 18. Nce2
{[%clk 0:01:51.4]} 18... g5 {[%clk 0:01:02.4]} 19. hxg5 {[%clk 0:01:49.3]} 19...
hxg5 {[%clk 0:01:01.5]} 20. Rh3 {[%clk 0:01:16.2]} 20... Kg7 {[%clk 0:00:56]}
21. Rgh1 {[%clk 0:01:16.1]} 21... Rh8 {[%clk 0:00:56.7]} 22. Nxc6 {[%clk
0:00:58.5]} 22... Rxc6 {[%clk 0:00:57.6]} 23. Ng3 {[%clk 0:00:59.1]} 23... Be5
{[%clk 0:00:56.3]} 24. Nh5+ {[%clk 0:00:26.3]} 24... Kg6 {[%clk 0:00:55.7]} 25.
f4 {[%clk 0:00:26.5]} 25... gxf4 {[%clk 0:00:39.8]} 26. Bxf4 {[%clk 0:00:27.4]}
26... Rhc8 {[%clk 0:00:19.3]} 27. c3 {[%clk 0:00:23.4]} 27... Ng5 {[%clk
0:00:19]} 28. Bxg5 {[%clk 0:00:13]} 28... Kxg5 {[%clk 0:00:19.9]} 29. Ng3 {[%clk
0:00:11.2]} 29... Kxg4 {[%clk 0:00:18.4]} 30. Ne2 {[%clk 0:00:11]} 30... Kg5
{[%clk 0:00:17.5]} 31. Rh6 {[%clk 0:00:08.8]} 31... Bf4+ {[%clk 0:00:11.5]} 32.
Kd1 {[%clk 0:00:06.5]} 32... Be5 {[%clk 0:00:10.2]} 33. R1h5+ {[%clk 0:00:06.2]}
33... Kg4 {[%clk 0:00:10.8]} 34. Ke1 {[%clk 0:00:05.9]} 34... f5 {[%clk
0:00:09.8]} 35. Rh4+ {[%clk 0:00:05.2]} 35... Kf3 {[%clk 0:00:09.3]} 36. exf5
{[%clk 0:00:03]} 36... exf5 {[%clk 0:00:09.4]} 37. Ra4 {[%clk 0:00:03.4]} 37...
Rc4 {[%clk 0:00:09]} 38. Rh3+ {[%clk 0:00:03.5]} 38... Kg4 {[%clk 0:00:09.1]}
39. Rxc4+ {[%clk 0:00:04]} 39... Rxc4 {[%clk 0:00:10]} 40. Rd3 {[%clk
0:00:04.5]} 40... f4 {[%clk 0:00:10]} 41. Kf2 {[%clk 0:00:04.9]} 41... Bf6
{[%clk 0:00:08.9]} 42. Ng1 {[%clk 0:00:05.4]} 42... Bh4+ {[%clk 0:00:08.7]} 43.
Kg2 {[%clk 0:00:06.1]} 43... Re4 {[%clk 0:00:09.2]} 44. Rxd6 {[%clk 0:00:05.7]}
44... f3+ {[%clk 0:00:08.8]} 45. Nxf3 {[%clk 0:00:04.1]} 45... Re2+ {[%clk
0:00:09.4]} 46. Kf1 {[%clk 0:00:04.4]} 46... Rf2+ {[%clk 0:00:10]} 47. Kg1
{[%clk 0:00:04]} 47... Kxf3 {[%clk 0:00:06.3]} 48. Rxa6 {[%clk 0:00:04.3]} 48...
Rxb2 {[%clk 0:00:06.4]} 49. c4 {[%clk 0:00:02]} 49... Rb1+ {[%clk 0:00:06.4]}
50. Kh2 {[%clk 0:00:02.3]} 50... Bg3+ {[%clk 0:00:07.3]} 51. Kh3 {[%clk
0:00:02.9]} 51... Rh1# {[%clk 0:00:08.2]} 0-1